lending/lending_fUSD_20240509
["ID","MTS","AMOUNT","RATE_DAILY","PERIOD"]
[326707387,1715274646330,-1386.94,0.0003,30]
[326707388,1715274646340,-5791.61687523,0.0003,7]
[326707389,1715274646349,-5681.44871975,0.0003,2]
[326707390,1715274646358,-950.26058986,0.0003,4]
[326707391,1715274646368,-27666.75278199,0.0003,4]
[326707392,1715274646377,-230.28794334,0.0003,7]
[326707393,1715274646386,-3101.18270151,0.0003,10]
[326707394,1715274646396,-255.93455918,0.0003,4]
[326707395,1715274646405,-213.22634046,0.0003,30]
[326707396,1715274646414,-2223.76178161,0.0003,3]
[326707397,1715274646423,-160.49265988,0.0003,120]
[326707398,1715274646432,-1201.92,0.0003,3]
[326707399,1715274646441,-8821.71,0.0003,3]
[326707400,1715274646451,-202.0,0.0003,2]
[326707401,1715274646460,-202.0,0.0003,2]
[326707402,1715274646469,-202.0,0.0003,2]
[326707403,1715274646478,-202.0,0.0003,2]
[326707404,1715274646488,-202.0,0.0003,2]
[326707405,1715274646497,-202.0,0.0003,2]
[326707406,1715274646507,-202.0,0.0003,2]
[326707407,1715274646516,-202.0,0.0003,2]
[326707408,1715274646526,-209.0,0.0003,2]
[326707409,1715274646535,-209.0,0.0003,2]
[326707410,1715274646545,-209.0,0.0003,2]
[326707411,1715274646555,-209.0,0.0003,2]
[326707412,1715274646564,-209.0,0.0003,2]
[326707413,1715274646573,-209.0,0.0003,2]
[326707414,1715274646583,-209.0,0.0003,2]
[326707415,1715274646592,-209.0,0.0003,2]
[326707416,1715274646601,-209.0,0.0003,2]
[326707417,1715274646610,-209.0,0.0003,2]
[326707418,1715274646620,-302.53909526,0.0003,120]
[326707419,1715274646629,-300.0,0.0003,5]
[326707420,1715274646639,-632.24953001,0.0003,4]
[326707421,1715274646648,-304.079,0.0003,5]
[326707422,1715274646659,-19489.78061408,0.0003,2]
[326707423,1715274646668,-615.04730732,0.0003,2]
[326707424,1715274646678,-2000.0,0.0003,2]
[326707425,1715274646687,-250.83758399,0.0003,30]
[326707426,1715274646696,-155.0,0.0003,4]
[326707427,1715274646706,-4395.03703088,0.0003,4]
[326707428,1715274646715,-160.0,0.0003,2]
[326707429,1715274646726,-1000.0,0.0003,5]
[326707430,1715274646737,-1000.0,0.0003,2]
[326707431,1715274646746,-216.0,0.0003,2]
[326707432,1715274646755,-214.0,0.0003,2]
[326707433,1715274646765,-214.0,0.0003,2]
[326707434,1715274646775,-214.0,0.0003,2]
[326707435,1715274646785,-2000.0,0.0003,2]
[326707436,1715274646795,-200.0,0.0003,2]
[326707437,1715274646804,-214.0,0.0003,2]
[326707438,1715274646814,-214.0,0.0003,2]
[326707439,1715274646823,-214.0,0.0003,2]
[326707440,1715274646833,-202.0,0.0003,2]
[326707441,1715274646842,-202.0,0.0003,2]
[326707442,1715274646852,-214.0,0.0003,2]
[326707443,1715274646862,-214.0,0.0003,2]
[326707444,1715274646871,-202.0,0.0003,2]
[326707445,1715274646881,-222.0,0.0003,2]
[326707446,1715274646891,-217.0,0.0003,2]
[326707447,1715274646901,-214.0,0.0003,2]
[326707448,1715274646911,-214.0,0.0003,2]
[326707449,1715274646920,-216.0,0.0003,2]
[326707450,1715274646930,-202.0,0.0003,2]
[326707451,1715274646940,-202.0,0.0003,2]
[326707452,1715274646949,-222.0,0.0003,2]
[326707453,1715274646959,-437.22,0.0003,2]
[326707454,1715274646970,-2000.0,0.0003,2]
[326707455,1715274646981,-200.0,0.0003,2]
[326707456,1715274646991,-159.0,0.0003,2]
[326707457,1715274647006,-2000.0,0.0003,2]
[326707458,1715274647016,-252.0,0.0003,18]
[326707459,1715274647026,-484.0,0.0003,14]
[326707460,1715274647037,-150.0,0.0003,7]
[326707461,1715274647047,-150.0,0.0003,7]
[326707462,1715274647056,-150.0,0.0003,7]
[326707463,1715274647066,-150.0,0.0003,7]
[326707464,1715274647077,-343.0,0.0003,2]
[326707465,1715274647087,-686.0,0.0003,2]
[326707466,1715274647097,-683.0,0.0003,2]
[326707467,1715274647107,-247.022844,0.0003,2]
[326707468,1715274647121,-223.0,0.0003,2]
[326707469,1715274647132,-672.4362,0.0003,2]
[326707470,1715274647142,-672.4362,0.0003,2]
[326707471,1715274647152,-500.0,0.0003,2]
[326707472,1715274647162,-925.79,0.0003,2]
[326707473,1715274647172,-995.76,0.0003,2]
[326707474,1715274647182,-150.0,0.0003,11]
[326707475,1715274647192,-999.54,0.0003,2]
[326707476,1715274647202,-2000.0,0.0003,2]
[326707477,1715274647212,-200.0,0.0003,2]
[326707478,1715274647223,-1235.7522,0.0003,2]
[326707479,1715274647233,-1235.7522,0.0003,2]
[326707480,1715274647244,-207.0,0.0003,2]
[326707481,1715274647253,-173.47911917,0.00030001,2]
[326707482,1715274647263,-2000.0,0.0003001,2]
[326707483,1715274647272,-2000.0,0.0003002,2]
[326707484,1715274647282,-150.0,0.00030027,7]
[326707485,1715274647293,-2000.0,0.0003003,2]
[326707486,1715274647302,-2000.0,0.0003004,2]
[326707487,1715274647313,-2000.0,0.0003005,2]
[326707488,1715274647323,-769.0,0.00030051,2]
[326707489,1715274647332,-598.0,0.00030051,2]
[326707490,1715274647343,-2000.0,0.0003006,2]
[326707491,1715274647352,-2770.494292,0.0003007,2]
[326707492,1715274647363,-400.0,0.0003007,2]
[326707493,1715274647372,-209.0,0.0003008,2]
[326707494,1715274647382,-200.0,0.00030137,2]
[326707495,1715274647392,-11370.2372162,0.0003019,2]
[326707496,1715274647401,-1417.8754962,0.0003019,2]
[326707499,1715274647412,-1541.3751238,0.0003019,2]
[326707502,1715274647422,-2301.0964399,0.0003019,2]
[326707503,1715274647431,-279.0731615,0.0003019,2]
[326707504,1715274647441,-21175.8869098,0.0003019,2]
[326707505,1715274647451,-4697.2511675,0.0003019,2]
[326707506,1715274647461,-1270.7228927,0.0003019,2]
[326707507,1715274647472,-1000.0,0.00030211,10]
[326707508,1715274647481,-1000.0,0.00030211,10]
[326707509,1715274647495,-1000.0,0.00030211,10]
[326707510,1715274647505,-1000.0,0.00030211,10]
[326707511,1715274647515,-1000.0,0.00030211,10]
[326707512,1715274647525,-1000.0,0.00030211,10]
[326707513,1715274647535,-1000.0,0.00030211,10]
[326707514,1715274647545,-1000.0,0.00030211,10]
[326707515,1715274647555,-1000.0,0.00030211,10]
[326707516,1715274647565,-1000.0,0.00030211,10]
[326707517,1715274647575,-1000.0,0.00030211,10]
[326707518,1715274647584,-1000.0,0.00030211,10]
[326707519,1715274647594,-1000.0,0.00030211,10]
[326707520,1715274647604,-1000.0,0.00030211,10]
[326707521,1715274647614,-1000.0,0.00030211,10]
[326707522,1715274647624,-1000.0,0.00030211,10]
[326707523,1715274647634,-1000.0,0.00030211,10]
[326707524,1715274647644,-1000.0,0.00030211,10]
[326707525,1715274647654,-1000.0,0.00030211,10]
[326707526,1715274647663,-1000.0,0.00030211,10]
[326707527,1715274647673,-1000.0,0.00030211,10]
[326707528,1715274647683,-1000.0,0.00030211,10]
[326707529,1715274647693,-1000.0,0.00030211,10]
[326707530,1715274647703,-1000.0,0.00030211,10]
[326707531,1715274647882,-1000.0,0.00030211,10]
[326707532,1715274647891,-1000.0,0.00030211,10]
[326707533,1715274647902,-1000.0,0.00030211,10]
[326707534,1715274647911,-1000.0,0.00030211,10]
[326707535,1715274647921,-1000.0,0.00030211,10]
[326707536,1715274647932,-1000.0,0.00030211,10]
[326707537,1715274647941,-687.41777495,0.00030211,10]
[326707538,1715274647951,-1509.3112049,0.00030237,2]
[326707539,1715274647960,-1650.0465355,0.00030237,2]
[326707540,1715274647971,-2463.3304054,0.00030237,2]
[326707541,1715274647981,-298.7486279,0.00030237,2]
[326707542,1715274647995,-22668.8482851,0.00030237,2]
[326707543,1715274648004,-5028.4209831,0.00030237,2]
[326707544,1715274648013,-1360.3125381,0.00030237,2]
[326707545,1715274648023,-12103.4790986,0.00030258,2]
[326707546,1715274648032,-173.47911917,0.0003026,2]
[326707547,1715274648042,-150.0,0.00030281,2]
[326707548,1715274648051,-154.76908816,0.00030284,7]
[326707549,1715274648062,-2000.0,0.000303,2]
[326707550,1715274648074,-200.0,0.000303,2]
[326707551,1715274648084,-2000.0,0.000303,2]
[326707552,1715274648094,-200.0,0.000303,2]
[326707553,1715274648104,-2000.0,0.000303,2]
[326707554,1715274648113,-200.0,0.000303,2]
[326707555,1715274648124,-769.0,0.0003036,2]
[326707556,1715274648134,-598.0,0.0003036,2]
[326707557,1715274648144,-165.65643103,0.00030369,7]
[326707558,1715274648153,-153.89076617,0.00030461,7]
[326707559,1715274648164,-252.0,0.000305,19]
[326707560,1715274648173,-1068.982,0.00030553,2]
[326707561,1715274648182,-153.35,0.00030553,2]
[326707562,1715274648192,-164.0,0.00030553,2]
[326707563,1715274648201,-238.076,0.00030553,2]
[326707564,1715274648210,-2000.0,0.00030603,2]
[326707565,1715274648220,-200.0,0.00030603,2]
[326707566,1715274648229,-200.0,0.00030603,2]
[326707567,1715274648238,-2000.0,0.00030603,2]
[326707568,1715274648248,-200.0,0.00030603,2]
[326707569,1715274648257,-151.0,0.00030619,2]
[326707570,1715274648266,-173.47911917,0.0003062,2]
[326707571,1715274648276,-500.0,0.0003067,2]
[326707572,1715274648285,-769.0,0.0003067,2]
[326707573,1715274648295,-598.0,0.0003067,2]
[326707574,1715274648304,-925.79,0.000307,2]
[326707575,1715274648313,-999.54,0.000307,2]
[326707576,1715274648322,-150.0,0.0003071,5]
[326707577,1715274648333,-21683.44055815,0.00030722,2]
[326707578,1715274648342,-150.0,0.0003075,7]
[326707579,1715274648351,-3224.42792466,0.000308,7]
[326707580,1715274648361,-173.47911917,0.000308,2]
[326707581,1715274648371,-173.47911917,0.000308,2]
[326707582,1715274648381,-437.22,0.000308,2]
[326707583,1715274648390,-2584.24382,0.000308,2]
[326707584,1715274648400,-5359.5907988,0.00030832,2]
[326707585,1715274648410,-1449.9021834,0.00030832,2]
[326707586,1715274648419,-150.0,0.00030844,7]
[326707587,1715274648429,-173.47911917,0.00030851,2]
[326707588,1715274648439,-24161.8096604,0.00030853,2]
[326707589,1715274648449,-5690.7606144,0.00030853,2]
[326707590,1715274648458,-1539.4918287,0.00030853,2]
[326707591,1715274648468,-1600.7469135,0.00030858,2]
[326707592,1715274648479,-1758.7179472,0.00030858,2]
[326707593,1715274648489,-2625.5643709,0.00030858,2]
[326707594,1715274648498,-318.4240943,0.00030858,2]
[326707595,1715274648508,-12836.7209809,0.00030874,2]
[326707596,1715274648518,-1692.1826222,0.00030874,2]
[326707597,1715274648528,-1867.3893589,0.00030874,2]
[326707598,1715274648537,-2787.7983363,0.00030874,2]
[326707599,1715274648546,-338.0995607,0.00030874,2]
[326707600,1715274648556,-25654.7710357,0.00030874,2]
[326707601,1715274648565,-6021.93043,0.00030874,2]
[326707602,1715274648575,-1629.081474,0.00030874,2]
[326707603,1715274648584,-174.76024922,0.0003088,2]
[326707604,1715274648593,-541.97587448,0.0003088,7]
[326707605,1715274648603,-541.97587448,0.0003088,7]
[326707606,1715274648612,-541.97587448,0.0003088,7]
[326707607,1715274648620,-541.97587448,0.0003088,7]
[326707608,1715274648630,-541.97587448,0.0003088,7]
[326707609,1715274648639,-541.97587448,0.0003088,7]
[326707610,1715274648649,-541.97587448,0.0003088,7]
[326707611,1715274648658,-541.97587448,0.0003088,7]
[326707612,1715274648668,-541.97587448,0.0003088,7]
[326707613,1715274648677,-541.97587448,0.0003088,7]
[326707614,1715274648687,-541.97587448,0.0003088,7]
[326707615,1715274648696,-541.97587448,0.0003088,7]
[326707616,1715274648705,-541.97587448,0.0003088,7]
[326707617,1715274648715,-541.97587448,0.0003088,7]
[326707618,1715274648726,-541.97587448,0.0003088,7]
[326707619,1715274648735,-541.97587448,0.0003088,7]
[326707620,1715274648744,-541.97587448,0.0003088,7]
[326707621,1715274648754,-541.97587448,0.0003088,7]
[326707622,1715274648763,-541.97587448,0.0003088,7]
[326707623,1715274648772,-542.47,0.0003088,7]
[326707624,1715274648782,-166.61403095,0.0003088,7]
[326707625,1715274648792,-166.61403095,0.0003088,7]
[326707626,1715274648802,-166.61403095,0.0003088,7]
[326707627,1715274648812,-166.61403095,0.0003088,7]
[326707628,1715274648821,-166.61403095,0.0003088,7]
[326707629,1715274648830,-166.61403095,0.0003088,7]
[326707630,1715274648839,-166.61403095,0.0003088,7]
[326707631,1715274648849,-166.61403095,0.0003088,7]
[326707632,1715274648858,-166.61403095,0.0003088,7]
[326707633,1715274648867,-166.61403095,0.0003088,7]
[326707634,1715274648877,-166.61403095,0.0003088,7]
[326707635,1715274648887,-166.61403095,0.0003088,7]
[326707636,1715274648896,-166.61403095,0.0003088,7]
[326707637,1715274648905,-166.61403095,0.0003088,7]
[326707638,1715274648915,-166.61403095,0.0003088,7]
[326707639,1715274648924,-166.61403095,0.0003088,7]
[326707640,1715274648933,-166.61403095,0.0003088,7]
[326707641,1715274648942,-166.61403095,0.0003088,7]
[326707642,1715274648952,-166.61403095,0.0003088,7]
[326707643,1715274648961,-167.11,0.0003088,7]
[326707644,1715274648971,-160.55849829,0.0003088,7]
[326707645,1715274648981,-160.55849829,0.0003088,7]
[326707646,1715274648990,-160.55849829,0.0003088,7]
[326707647,1715274649004,-160.55849829,0.0003088,7]
[326707648,1715274649013,-161.05,0.0003088,7]
[326707649,1715274649023,-205.37624814,0.0003088,7]
[326707650,1715274649035,-205.37624814,0.0003088,7]
[326707651,1715274649046,-205.37624814,0.0003088,7]
[326707652,1715274649056,-205.37624814,0.0003088,7]
[326707653,1715274649065,-205.37624814,0.0003088,7]
[326707654,1715274649078,-205.37624814,0.0003088,7]
[326707655,1715274649088,-205.37624814,0.0003088,7]
[326707656,1715274649097,-205.37624814,0.0003088,7]
[326707657,1715274649106,-205.37624814,0.0003088,7]
[326707658,1715274649116,-205.37624814,0.0003088,7]
[326707659,1715274649126,-205.37624814,0.0003088,7]
[326707660,1715274649135,-205.37624814,0.0003088,7]
[326707661,1715274649146,-205.37624814,0.0003088,7]
[326707662,1715274649155,-205.37624814,0.0003088,7]
[326707663,1715274649164,-205.37624814,0.0003088,7]
[326707664,1715274649174,-205.37624814,0.0003088,7]
[326707665,1715274649184,-205.37624814,0.0003088,7]
[326707666,1715274649193,-205.37624814,0.0003088,7]
[326707667,1715274649203,-205.37624814,0.0003088,7]
[326707668,1715274649212,-205.87,0.0003088,7]
[326707669,1715274649223,-453.0,0.0003089,2]
[326707670,1715274649233,-13569.9628633,0.00030895,2]
[326707671,1715274649242,-14303.2047456,0.00030895,2]
[326707672,1715274649252,-1783.6183309,0.00030895,2]
[326707673,1715274649264,-1976.0607706,0.00030895,2]
[326707674,1715274649273,-2950.0323018,0.00030895,2]
[326707675,1715274649282,-357.7750271,0.00030895,2]
[326707676,1715274649291,-27147.732411,0.00030895,2]
[326707677,1715274649300,-484.0,0.000309,15]
[326707678,1715274649309,-343.0,0.000309,3]
[326707679,1715274649318,-343.0,0.000309,3]
[326707680,1715274649328,-4238.22794926,0.000309,2]
[326707681,1715274649337,-150.0,0.000309,2]
[326707682,1715274649347,-2000.0,0.00030909,2]
[326707683,1715274649356,-200.0,0.00030909,2]
[326707684,1715274649366,-200.0,0.00030909,2]
[326707685,1715274649375,-400.0,0.0003097,2]
[326707686,1715274649384,-164.76540253,0.00030979,10]
[326707687,1715274649393,-167.8869119,0.0003098,7]
[326707688,1715274649403,-212.0,0.0003098,2]
[326707689,1715274649411,-212.0,0.0003098,2]
[326707690,1715274649421,-212.0,0.0003098,2]
[326707691,1715274649430,-618946.73165138,0.0003098,2]
[326707692,1715274649440,-291199.07102275,0.0003098,2]
[326707693,1715274649449,-5068202.88334489,0.0003098,2]
[326707694,1715274649464,-350.15931095,0.0003098,2]
[326707695,1715274649478,-300.34500001,0.0003098,2]
[326707696,1715274649489,-1048.0,0.0003098,2]
[326707697,1715274649500,-744.63867415,0.0003098,2]
[326707698,1715274649512,-668.16681472,0.0003098,2]
[326707699,1715274650134,-500.0,0.00029169,3]
[326707700,1715274650143,-397861.87364897,0.0003098,2]
[326707701,1715274650153,-173.47911917,0.0003098,2]
[326707702,1715274650163,-391.11400533,0.0003098,2]
[326707703,1715274650172,-234.6684032,0.0003098,2]
[326707704,1715274650182,-769.0,0.0003098,2]
[326707705,1715274650191,-610.83136058,0.0003098,2]
[326707706,1715274650201,-382.5108143,0.0003098,2]
[326707707,1715274650210,-598.0,0.0003098,2]
[326707708,1715274650219,-1236.10433322,0.0003098,2]
[326707709,1715274650231,-152.101478,0.0003098,7]
[326707710,1715274650241,-151.0,0.0003098,7]
[326707711,1715274650250,-153.719589,0.0003098,7]
[326707712,1715274650259,-1281.28822643,0.0003098,2]
[326707713,1715274650269,-156.835496,0.0003098,7]
[326707714,1715274650278,-157.063913,0.0003098,7]
[326707715,1715274650287,-152.48457,0.0003098,7]
[326707716,1715274650296,-151.0,0.0003098,7]
[326707717,1715274650306,-151.0,0.0003098,7]
[326707718,1715274650315,-151.0,0.0003098,7]
[326707719,1715274650324,-165.015727,0.0003098,7]
[326707720,1715274650334,-151.0,0.0003098,7]
[326707721,1715274650343,-68743.79762589,0.0003098,2]
[326707722,1715274650352,-151.0,0.0003098,7]
[326707723,1715274650362,-151.0,0.0003098,7]
[326707724,1715274650373,-157.115868,0.0003098,7]
[326707725,1715274650382,-153.331214,0.0003098,7]
[326707726,1715274650391,-990.581902,0.0003098,7]
[326707727,1715274650401,-990.581902,0.0003098,7]
[326707728,1715274650410,-151.0,0.0003098,7]
[326707729,1715274650420,-160.997312,0.0003098,7]
[326707730,1715274650429,-152.039619,0.0003098,7]
[326707731,1715274650439,-160.997312,0.0003098,7]
[326707732,1715274650448,-151.0,0.0003098,7]
[326707733,1715274650457,-152.590505,0.0003098,7]
[326707734,1715274650468,-151.456869,0.0003098,7]
[326707735,1715274650479,-151.0,0.0003098,7]
[326707736,1715274650488,-151.0,0.0003098,7]
[326707737,1715274650497,-151.0,0.0003098,7]
[326707738,1715274650508,-151.0,0.0003098,7]
[326707739,1715274650518,-152.874139,0.0003098,7]
[326707740,1715274650527,-151.0,0.0003098,7]
[326707741,1715274650537,-151.0,0.0003098,7]
[326707742,1715274650547,-159.233217,0.0003098,7]
[326707743,1715274650556,-151.0,0.0003098,7]
[326707744,1715274650566,-151.0,0.0003098,7]
[326707745,1715274650576,-153.901999,0.0003098,7]
[326707746,1715274650585,-151.0,0.0003098,7]
[326707747,1715274650595,-153.458267,0.0003098,7]
[326707748,1715274650604,-417.242591,0.0003098,7]
[326707749,1715274650614,-152.539665,0.0003098,7]
[326707750,1715274650623,-151.0,0.0003098,7]
[326707751,1715274650633,-417.242591,0.0003098,7]
[326707752,1715274650644,-151.0,0.0003098,7]
[326707753,1715274650653,-151.0,0.0003098,7]
[326707754,1715274650662,-151.0,0.0003098,7]
[326707755,1715274650672,-151.0,0.0003098,7]
[326707756,1715274650681,-151.89186,0.0003098,7]
[326707757,1715274650691,-151.0,0.0003098,7]
[326707758,1715274650700,-151.0,0.0003098,7]
[326707759,1715274650710,-151.0,0.0003098,7]
[326707760,1715274650719,-151.0,0.0003098,7]
[326707761,1715274650729,-151.0,0.0003098,7]
[326707762,1715274650739,-151.0,0.0003098,7]
[326707763,1715274650748,-154.388513,0.0003098,7]
[326707764,1715274650758,-156.433079,0.0003098,7]
[326707765,1715274650767,-152.126057,0.0003098,7]
[326707766,1715274650777,-151.0,0.0003098,7]
[326707767,1715274650787,-151.0,0.0003098,7]
[326707768,1715274650797,-322.070171,0.0003098,7]
[326707769,1715274650807,-322.070171,0.0003098,7]
[326707770,1715274650817,-151.0,0.0003098,7]
[326707771,1715274650826,-151.0,0.0003098,7]
[326707772,1715274650835,-151.0,0.0003098,7]
[326707773,1715274650845,-50000.0,0.00031,11]
[326707774,1715274650854,-500.0,0.00031,120]
[326707775,1715274650864,-75875.82700171,0.00031,4]
[326707776,1715274650873,-2800.29510272,0.00031,2]
[326707777,1715274650882,-252.0,0.00031,19]
[326707778,1715274650892,-150.0,0.00031002,2]
[326707779,1715274650901,-160.33257566,0.00031014,30]
[326707780,1715274650911,-155.0495687,0.00031054,7]
[326707781,1715274650920,-150.0,0.00031125,7]
[326707782,1715274650929,-302.0,0.00031133,4]
[326707783,1715274650939,-160.33257566,0.00031151,30]
[326707784,1715274650948,-322.72,0.00031151,120]
[326707785,1715274650958,-5000.0,0.00031161,10]
[326707786,1715274650967,-12041.56363044,0.0003121,2]
[326707787,1715274650977,-2000.0,0.00031218,2]
[326707788,1715274650992,-200.0,0.00031218,2]
[326707789,1715274651001,-157.6555605,0.00031253,7]
[326707790,1715274651010,-161.23033745,0.00031257,7]
[326707791,1715274651020,-160.33257566,0.0003126,30]
[326707792,1715274651031,-769.0,0.0003129,2]
[326707793,1715274651041,-598.0,0.0003129,2]
[326707794,1715274651050,-173.47911917,0.0003134,2]
[326707795,1715274651061,-154.76908816,0.00031345,7]
[326707796,1715274651071,-195.87309804,0.00031345,2]
[326707797,1715274651080,-183.36,0.00031358,2]
[326707798,1715274651090,-160.33257566,0.00031397,30]
[326707799,1715274651099,-925.79,0.000314,2]
[326707800,1715274651109,-999.54,0.000314,2]
[326707801,1715274651119,-18296.65320395,0.0003143,4]
[326707802,1715274651129,-151.0,0.00031448,2]
[326707803,1715274651139,-150.0,0.000315,7]
[326707804,1715274651148,-252.0,0.000315,20]
[326707805,1715274651158,-160.33257566,0.00031534,30]
[326707806,1715274651168,-5000.0,0.00031554,10]
[326707807,1715274651178,-161.23033745,0.00031565,7]
[326707808,1715274651188,-156.84,0.00031579,2]
[326707809,1715274651198,-769.0,0.000316,2]
[326707810,1715274651209,-598.0,0.000316,2]
[326707811,1715274651218,-173.47911917,0.000316,2]
[326707812,1715274651229,-437.22,0.000316,2]
[326707813,1715274651238,-995.76,0.0003162,2]
[326707814,1715274651247,-604.0,0.00031657,7]
[326707815,1715274651257,-160.33257566,0.00031671,30]
[326707816,1715274651267,-5000.0,0.00031674,10]
[326707817,1715274651276,-150.0,0.00031688,7]
[326707818,1715274651286,-171.93194922,0.000317,3]
[326707819,1715274651295,-173.47911917,0.000317,2]
[326707820,1715274651305,-173.47911917,0.000317,2]
[326707821,1715274651314,-173.47911917,0.000317,2]
[326707822,1715274651324,-173.47911917,0.000317,2]
[326707823,1715274651333,-173.47911917,0.000317,2]
[326707824,1715274651343,-150.0,0.00031723,2]
[326707825,1715274651352,-5000.0,0.0003173,10]
[326707826,1715274651361,-160.33257566,0.00031781,30]
[326707827,1715274651370,-156.44560213,0.000318,2]
[326707828,1715274651380,-1000000.0,0.000318,2]
[326707829,1715274651389,-1065.69,0.000318,10]
[326707830,1715274651398,-151.0,0.000318,7]
[326707831,1715274651407,-151.0,0.000318,7]
[326707832,1715274651416,-151.0,0.000318,7]
[326707833,1715274651425,-151.0,0.000318,7]
[326707834,1715274651434,-151.0,0.000318,7]
[326707835,1715274651444,-151.0,0.000318,7]
[326707836,1715274651454,-151.0,0.000318,7]
[326707837,1715274651463,-154.406859,0.000318,7]
[326707838,1715274651473,-153.944408,0.000318,7]
[326707839,1715274651484,-155.59542,0.000318,7]
[326707840,1715274651494,-151.0,0.000318,7]
[326707841,1715274651503,-151.433602,0.000318,7]
[326707842,1715274651513,-151.0,0.000318,7]
[326707843,1715274651523,-155.046048,0.000318,7]
[326707844,1715274651533,-152.479682,0.000318,7]
[326707845,1715274651543,-151.0,0.000318,7]
[326707846,1715274651552,-151.0,0.000318,7]
[326707847,1715274651562,-274.785957,0.000318,7]
[326707848,1715274651571,-151.0,0.000318,7]
[326707849,1715274651581,-152.41472,0.000318,7]
[326707850,1715274651591,-151.0,0.000318,7]
[326707851,1715274651600,-151.0,0.000318,7]
[326707852,1715274651610,-151.0,0.000318,7]
[326707853,1715274651620,-151.476063,0.000318,7]
[326707854,1715274651629,-152.133639,0.000318,7]
[326707855,1715274651639,-153.047295,0.000318,7]
[326707856,1715274651648,-151.612545,0.000318,7]
[326707857,1715274651658,-151.0,0.000318,7]
[326707858,1715274651667,-151.0,0.000318,7]
[326707859,1715274651676,-151.0,0.000318,7]
[326707860,1715274651686,-151.0,0.000318,7]
[326707861,1715274651695,-153.211788,0.000318,7]
[326707862,1715274651704,-154.481526,0.000318,7]
[326707863,1715274651713,-157.059815,0.000318,7]
[326707864,1715274651722,-151.0,0.000318,7]
[326707865,1715274651733,-151.0,0.000318,7]
[326707866,1715274651742,-151.0,0.000318,7]
[326707867,1715274651751,-160.399398,0.000318,7]
[326707868,1715274651760,-157.339208,0.000318,7]
[326707869,1715274651769,-151.0,0.000318,7]
[326707870,1715274651779,-155.137165,0.000318,7]
[326707871,1715274651790,-990.581902,0.000318,7]
[326707872,1715274651799,-990.581902,0.000318,7]
[326707873,1715274651810,-191.109869,0.000318,7]
[326707874,1715274651820,-160.997312,0.000318,7]
[326707875,1715274651832,-160.997312,0.000318,7]
[326707876,1715274651842,-151.0,0.000318,7]
[326707877,1715274651851,-151.0,0.000318,7]
[326707878,1715274651861,-161.560267,0.000318,7]
[326707879,1715274651870,-187.660815,0.000318,7]
[326707880,1715274651879,-151.0,0.000318,7]
[326707881,1715274651890,-151.0,0.000318,7]
[326707882,1715274651901,-151.0,0.000318,7]
[326707883,1715274652029,-247.848146,0.000318,7]
[326707884,1715274652038,-152.375106,0.000318,7]
[326707885,1715274652048,-151.0,0.000318,7]
[326707886,1715274652057,-417.242591,0.000318,7]
[326707887,1715274652066,-151.0,0.000318,7]
[326707888,1715274652076,-417.242591,0.000318,7]
[326707889,1715274652087,-151.0,0.000318,7]
[326707890,1715274652096,-151.0,0.000318,7]